bitfinex/quotes_SOLUSD_20250217
["timestamp","ask_amount","ask_price","bid_price","bid_amount"]
[1739795636550,50.1478578,185.67,185.65,0.97716035]
[1739795636726,10.02957156,185.66,185.65,0.97716035]
[1739795637744,15.41567156,185.66,185.65,1.97716035]
[1739795638045,15.41567156,185.66,185.65,0.97716035]
[1739795638473,15.41567156,185.66,185.64,0.97716035]
[1739795638642,10.02957156,185.65,185.64,0.97716035]
[1739795639655,15.41597156,185.65,185.64,1.97716035]
[1739795639825,10.02957156,185.66,185.64,1.97716035]
[1739795640240,5.3858,185.68,185.65,0.97716035]
[1739795640444,5.3858,185.68,185.67,0.97716035]
[1739795641047,5.3858,185.68,185.67,1.97716035]
[1739795641236,15.41537156,185.68,185.67,1.97716035]
[1739795641642,15.41537156,185.68,185.66,0.97716035]
[1739795641951,10.02957156,185.67,185.65,1.97716035]
[1739795642131,5.3858,185.68,185.65,0.97716035]
[1739795642132,10.02957156,185.66,185.65,0.97716035]
[1739795642835,10.15506156,185.66,185.64,0.03]
[1739795643037,10.02957156,185.65,185.64,0.03]
[1739795643259,23.69240009,185.65,185.64,0.03]
[1739795643844,29.07880009,185.65,185.64,0.03]
[1739795647158,28.95331009,185.65,185.63,0.03]
[1739795647458,10.02957156,185.64,185.63,0.03]
[1739795648158,15.41627156,185.64,185.63,0.03]
[1739795649156,15.41627156,185.64,185.63,2.00716035]
[1739795650262,15.41627156,185.64,185.63,1.00716035]
[1739795652770,15.41627156,185.64,185.63,0.03]
[1739795652951,15.41627156,185.64,185.63,1.00716035]
[1739795654247,15.41627156,185.64,185.63,0.03]
[1739795654446,15.54176156,185.64,185.63,0.03]
[1739795655169,29.07910009,185.64,185.63,0.03]
[1739795656773,29.07910009,185.64,185.63,1.00716035]
[1739795657248,29.07910009,185.64,185.63,0.03]
[1739795659972,15.54176156,185.64,185.63,0.03]
[1739795660776,10.02957156,185.64,185.63,1.03]
[1739795660955,10.02957156,185.64,185.63,2.00716035]
[1739795661162,10.02957156,185.65,185.63,2.00716035]
[1739795661356,10.02957156,185.65,185.64,1.97716035]
[1739795663494,10.02957156,185.66,185.65,0.97716035]
[1739795664453,15.41567156,185.66,185.65,1.97716035]
[1739795664978,15.41567156,185.66,185.65,0.97716035]
[1739795665693,15.41567156,185.66,185.64,1.97716035]
[1739795665864,15.41597156,185.65,185.64,1.97716035]
[1739795666259,15.66695156,185.65,185.64,0.97716035]
[1739795666464,15.41597156,185.65,185.63,2.00716035]
[1739795666764,10.02957156,185.64,185.63,2.00716035]
[1739795667365,10.02957156,185.64,185.63,1.03]
[1739795667902,15.41627156,185.64,185.63,2.00716035]
[1739795668990,15.41627156,185.64,185.63,1.00716035]
[1739795670485,15.41627156,185.64,185.63,2.00716035]
[1739795671684,15.41627156,185.64,185.63,1.00716035]
[1739795671882,28.95361009,185.64,185.63,0.03]
[1739795672193,28.95361009,185.64,185.62,0.063]
[1739795672194,13.53733853,185.63,185.62,0.063]
[1739795672491,23.56691009,185.62,185.61,0.063]
[1739795672989,23.69240009,185.62,185.61,0.0001]
[1739795674189,29.07970009,185.62,185.61,0.0001]
[1739795677875,33.53733853,185.6,185.59,0.063]
[1739795678081,43.56691009,185.6,185.59,0.063]
[1739795678689,48.95481009,185.6,185.59,0.063]
[1739795679493,48.95481009,185.6,185.56,0.97716035]
[1739795679792,10.02957156,185.57,185.56,1.97716035]
[1739795681199,10.02957156,185.58,185.57,1.97716035]
[1739795683809,15.41807156,185.58,185.57,1.97716035]
[1739795683966,15.54356156,185.58,185.57,0.97716035]
[1739795684367,0.12549,185.57,185.56,0.97716035]
[1739795684567,10.15506156,185.57,185.55,0.97716035]
[1739795684784,10.15506156,185.57,185.54,0.97716035]
[1739795684785,10.02957156,185.56,185.54,0.97716035]
[1739795685098,10.02957156,185.55,185.54,0.97716035]
[1739795685494,15.41887156,185.55,185.54,0.97716035]
[1739795685702,15.41887156,185.55,185.53,1.03]
[1739795686012,10.02957156,185.54,185.53,0.03]
[1739795686299,10.02957156,185.54,185.53,1.00716035]
[1739795686497,10.02957156,185.54,185.53,2.00716035]
[1739795687607,40.11828624,185.58,185.53,2.00716035]
[1739795687910,5.3879,185.6,185.59,1.0]
[1739795688605,5.3879,185.6,185.58,0.97716035]
[1739795688606,5.3879,185.6,185.58,1.97716035]
[1739795688905,20.0,185.6,185.59,1.0]
[1739795689206,34.02957156,185.6,185.59,1.0]
[1739795689401,30.02957156,185.6,185.58,1.97716035]
[1739795689595,30.02957156,185.59,185.58,1.97716035]
[1739795690093,30.02957156,185.59,185.58,0.97716035]
[1739795690289,30.02957156,185.59,185.58,1.97716035]
[1739795691030,30.09257156,185.59,185.58,1.97716035]
[1739795691216,0.063,185.59,185.58,1.97716035]
[1739795696413,10.09257156,185.59,185.58,1.97716035]
[1739795696998,0.063,185.59,185.58,1.97716035]
[1739795698719,0.063,185.59,185.58,7.36566035]
[1739795699122,0.063,185.59,185.58,17.39523191]
[1739795699416,0.063,185.64,185.63,1.97716035]
[1739795699714,0.063,185.64,185.63,7.36416035]
[1739795701324,0.063,185.64,185.63,17.39373191]
[1739795702203,0.063,185.64,185.63,22.02899235]
[1739795704128,0.063,185.64,185.63,27.45630982]
[1739795706102,0.063,185.64,185.63,25.20532982]
[1739795707130,0.063,185.64,185.63,22.02899235]
[1739795708026,0.063,185.64,185.63,11.99942079]
[1739795708731,0.063,185.64,185.63,6.61242079]
[1739795708929,0.063,185.64,185.63,4.99212079]
[1739795709232,0.063,185.64,185.63,1.97716035]
[1739795709731,10.09257156,185.64,185.63,1.97716035]
[1739795710829,0.063,185.64,185.63,1.97716035]
[1739795718816,15.75687421,185.64,185.63,0.97716035]
[1739795719137,15.75687421,185.64,185.63,1.97716035]
[1739795720432,21.14357421,185.64,185.63,1.97716035]
[1739795720631,15.75687421,185.64,185.63,1.97716035]
[1739795720936,0.063,185.64,185.63,1.97716035]
[1739795721927,0.063,185.64,185.63,23.05803456]
[1739795722131,0.063,185.64,185.63,37.46988309]
[1739795723326,0.063,185.64,185.63,38.59537309]
[1739795723708,0.063,185.64,185.63,61.42086309]
[1739795723929,0.063,185.64,185.63,62.22859278]
[1739795725240,0.063,185.67,185.66,37.38900888]
[1739795725452,0.063,185.67,185.66,53.08288309]
[1739795726427,0.063,185.67,185.66,76.15935309]
[1739795727144,0.063,185.67,185.66,81.54545309]
[1739795727649,0.063,185.67,185.66,84.54919199]
[1739795728056,0.063,185.67,185.66,83.42370199]
[1739795728233,0.063,185.67,185.66,83.17272199]
[1739795729154,0.063,185.67,185.66,80.16898309]
[1739795731440,0.063,185.67,185.66,57.46898309]
[1739795733253,0.063,185.67,185.66,57.71996309]
[1739795733445,0.063,185.67,185.66,58.71996309]
[1739795733757,0.063,185.67,185.66,61.72589267]
[1739795734255,0.063,185.68,185.67,3.97716035]
[1739795734436,15.69387421,185.77,185.75,1.97716035]
[1739795735831,15.75687421,185.78,185.75,1.97716035]
[1739795737658,15.75687421,185.78,185.75,7.36066035]
[1739795737963,0.063,186.01,186.0,2.0]
[1739795738139,50.41285467,186.06,186.05,3.97716035]
[1739795738344,50.41285467,186.06,186.05,19.67103456]
[1739795738762,50.41285467,186.06,186.05,33.45935309]
[1739795738960,3.4148316,186.09,186.08,37.76547888]
[1739795739263,53.81075503,186.09,186.08,137.63335309]
[1739795740045,0.063,186.1,186.09,17.63998888]
[1739795740238,0.063,186.1,186.09,95.99474223]
[1739795740440,0.063,186.1,186.09,80.77716035]
[1739795740759,0.063,186.1,186.09,1.97716035]
[1739795741070,0.063,186.1,186.09,12.93784275]
[1739795741564,0.063,186.1,186.09,19.1711377]
[1739795741760,6.41701457,186.14,186.13,1.0]
[1739795741954,24.98069451,186.14,186.13,1.97716035]
[1739795742563,24.98069451,186.14,186.13,26.65593659]
[1739795742763,24.98069451,186.14,186.13,27.63309694]
[1739795743938,24.98069451,186.15,186.13,27.63309694]
[1739795744258,20.0,186.17,186.14,0.97716035]
[1739795744469,24.98069451,186.15,186.14,0.97716035]
[1739795745145,24.98069451,186.15,186.14,1.97716035]
[1739795745347,20.0,186.18,186.16,1.0]
[1739795745543,18.02873504,186.21,186.18,46.57168054]
[1739795745751,24.98069451,186.19,186.18,46.57168054]
[1739795745952,24.98069451,186.19,186.18,73.39198662]
[1739795746154,5.3697,186.23,186.18,46.57168054]
[1739795746469,24.98069451,186.19,186.18,57.53236294]
[1739795746861,110.26069451,186.19,186.18,57.53236294]
[1739795747063,110.26069451,186.19,186.18,10.9606824]
[1739795748259,115.63149451,186.19,186.18,10.9606824]
[1739795748438,115.75698451,186.19,186.18,10.9606824]
[1739795748640,115.75698451,186.19,186.14,49.24260832]
[1739795748641,0.12549,186.18,186.14,50.24260832]
[1739795748839,24.98069451,186.15,186.14,50.24260832]
[1739795749041,24.98069451,186.15,186.14,51.21976867]
[1739795749744,24.98069451,186.15,186.14,49.24260832]
[1739795749946,24.98069451,186.15,186.14,41.08569168]
[1739795750248,24.98069451,186.15,186.14,42.06285203]
[1739795750462,30.35269451,186.15,186.14,42.06285203]
[1739795751146,30.35269451,186.15,186.14,41.08569168]
[1739795752868,30.35269451,186.15,186.13,1.97716035]
[1739795753075,24.98069451,186.14,186.13,1.97716035]
[1739795753250,20.0,186.16,186.13,1.97716035]
[1739795753955,0.12549,186.17,186.13,1.97716035]
[1739795754673,20.0,186.16,186.13,1.97716035]
[1739795755141,25.3717,186.16,186.15,0.97716035]
[1739795756573,25.3717,186.16,186.14,1.97716035]
[1739795756778,25.3717,186.16,186.13,1.0]
[1739795757146,25.3717,186.16,186.14,0.97716035]
[1739795758156,25.3717,186.16,186.14,1.97716035]
[1739795760482,25.3717,186.16,186.13,1.0]
[1739795764083,25.3717,186.16,186.14,0.97716035]
[1739795764279,25.3717,186.16,186.13,2.04016035]
[1739795765388,25.3717,186.16,186.14,0.97716035]
[1739795765589,25.3717,186.16,186.15,1.0]
[1739795766387,5.3717,186.16,186.15,1.97716035]
[1739795767783,90.6508,186.19,186.18,1.97716035]
[1739795768665,5.3708,186.19,186.18,1.97716035]
[1739795770289,24.55533992,186.19,186.18,1.0]
[1739795770667,109.79533992,186.19,186.18,1.97716035]
[1739795770890,24.55533992,186.19,186.18,1.97716035]
[1739795771100,109.79533992,186.19,186.18,1.97716035]
[1739795771587,24.55533992,186.19,186.18,1.97716035]
[1739795772000,24.55533992,186.19,186.18,1.0]
[1739795772288,24.55533992,186.19,186.17,0.97716035]
[1739795772593,18.69005992,186.18,186.17,0.97716035]
[1739795774600,24.06115992,186.18,186.17,0.97716035]
[1739795775791,24.09115992,186.18,186.17,0.97716035]
[1739795775984,37.51895992,186.18,186.13,0.063]
[1739795776294,17.09005992,186.17,186.13,0.063]
[1739795778278,5.3717,186.16,186.13,0.063]
[1739795779480,5.3717,186.16,186.13,13.47484853]
[1739795779683,22.46145992,186.17,186.13,13.47484853]
[1739795780007,22.46145992,186.17,186.13,0.063]
[1739795780376,17.09005992,186.17,186.13,13.47484853]
[1739795780579,17.09005992,186.17,186.13,0.063]
[1739795780804,22.46155992,186.17,186.13,0.063]
[1739795781474,35.89005992,186.17,186.13,0.063]
[1739795787792,85.22,186.16,186.13,0.063]
[1739795789105,5.372,186.15,186.13,0.063]
[1739795792478,5.372,186.15,186.13,0.0001]
[1739795797918,20.0,186.12,186.07,50.26702082]
[1739795798802,18.806,186.11,186.07,50.26702082]
[1739795800717,18.803,186.14,186.07,50.26702082]
[1739795800893,20.0,186.11,186.07,50.26702082]
[1739795801503,20.0,186.11,186.0,7.1547]
[1739795801703,0.12549,186.1,186.0,7.1547]
[1739795802215,20.0,186.11,186.01,13.41184853]
[1739795803410,18.807,186.1,186.0,7.1547]
[1739795804329,18.807,186.1,186.01,13.41184853]
[1739795805909,18.807,186.1,186.0,7.1547]
[1739795807622,45.6742,186.1,186.0,7.1547]
[1739795807827,0.12549,186.09,185.99,13.41184853]
[1739795808127,20.0,186.05,185.94,0.063]
[1739795808420,20.0,186.05,185.95,13.41184853]
[1739795808813,20.0,186.05,185.94,0.063]
[1739795809421,22.14808493,186.05,185.94,0.063]
[1739795809794,20.0,186.01,185.94,0.063]
[1739795811813,18.8171,186.0,185.94,0.063]
[1739795815931,45.6988,186.0,185.94,0.063]
[1739795818499,18.8171,186.0,185.94,0.063]
[1739795819409,5.3763,186.0,185.94,13.47484853]
[1739795820124,5.3761,186.01,185.95,13.41184853]
[1739795820327,5.3761,186.01,185.95,20.27254853]
[1739795820624,5.3761,186.01,185.95,6.8607]
[1739795820814,5.3761,186.01,185.96,13.41184853]
[1739795821010,5.3761,186.01,185.95,35.91528139]
[1739795821212,85.28,186.02,185.98,15.64273286]
[1739795821511,30.99993965,186.14,186.0,13.41184853]
[1739795821512,18.807,186.1,186.0,13.41184853]
[1739795822331,21.01966246,186.1,186.0,13.41184853]
[1739795822712,21.01966246,186.1,186.01,29.05458139]
[1739795822924,5.3734,186.1,186.03,13.41184853]
[1739795823312,5.3734,186.1,186.02,1.6854]
[1739795823512,13.4336,186.1,186.02,1.6854]
[1739795825414,5.3731,186.11,186.03,13.41184853]
[1739795825830,5.3731,186.11,186.03,29.05458139]
[1739795826711,5.3731,186.11,186.03,13.41184853]
[1739795828717,18.806,186.11,186.03,13.41184853]
[1739795829547,5.3731,186.11,186.03,13.41184853]
[1739795831329,5.3731,186.11,186.03,29.05458139]
[1739795831643,5.3731,186.11,186.03,34.42998139]
[1739795831818,5.3731,186.11,186.05,29.05458139]
[1739795832017,85.3,186.12,186.07,13.41184853]
[1739795832248,0.03,186.13,186.07,13.41184853]
[1739795832629,5.4026,186.13,186.06,13.41184853]
[1739795833546,0.03,186.13,186.06,13.41184853]
[1739795833729,0.03,186.13,186.05,13.41184853]
[1739795833940,0.03,186.13,186.04,167.1279]
[1739795834616,0.03,186.13,186.05,13.41184853]
[1739795836036,20.03,186.13,186.02,80.4854]
[1739795836225,20.03,186.13,186.02,97.12813286]
[1739795836426,20.03,186.13,186.03,13.41184853]
[1739795837457,20.03,186.13,186.04,15.64273286]
[1739795837671,0.03,186.13,186.04,15.64273286]
[1739795838739,0.03,186.13,186.06,13.41184853]
[1739795840157,0.03,186.13,186.06,34.42918139]
[1739795840355,0.03,186.13,186.08,13.41184853]
[1739795841263,0.03,186.13,186.09,29.05458139]
[1739795841467,0.03,186.13,186.11,13.41184853]
[1739795842554,0.03,186.13,186.11,15.64273286]
[1739795842749,0.03,186.13,186.12,13.41184853]
[1739795842946,0.03,186.13,186.11,13.41184853]
[1739795843259,0.03,186.13,186.08,81.5]
[1739795843865,0.03,186.13,186.09,13.41184853]
[1739795844044,0.03,186.13,186.08,81.5]
[1739795845045,0.03,186.13,186.03,6.716]
[1739795845469,0.03,186.13,186.04,13.41184853]
[1739795846266,18.8339,186.13,186.04,13.41184853]
[1739795849579,18.8339,186.13,186.04,13.47484853]
[1739795851541,18.8339,186.13,186.04,0.063]
[1739795852068,18.8339,186.13,186.04,15.70573286]
[1739795852459,18.8339,186.13,186.04,0.063]
[1739795854174,5.4025,186.13,186.06,15.64273286]
[1739795854372,5.4025,186.13,186.07,13.41184853]
[1739795854867,5.4025,186.13,186.05,15.64273286]
[1739795855070,5.4025,186.13,186.06,13.41184853]
[1739795855579,0.03,186.13,186.06,13.41184853]
[1739795857756,0.03,186.13,186.05,13.41184853]
[1739795858272,0.03,186.13,186.04,0.063]
[1739795858575,0.03,186.13,186.04,13.47484853]
[1739795859085,0.03,186.13,186.04,29.11758139]
[1739795859381,0.03,186.13,186.04,13.47484853]
[1739795859683,20.03,186.13,186.04,13.47484853]
[1739795861364,20.03,186.13,186.05,9.99982039]
[1739795861673,5.3728,186.12,186.04,23.47466892]
[1739795863080,18.8049,186.12,186.04,13.47484853]
[1739795864255,20.4657,186.12,186.04,0.063]
[1739795864763,25.4027,186.13,186.05,5.3748]
[1739795864965,25.4027,186.13,186.04,13.47484853]
[1739795865162,5.4027,186.13,186.06,13.41184853]
[1739795865374,5.4027,186.13,186.06,23.41166892]
[1739795865760,5.4027,186.13,186.06,13.41184853]
[1739795867392,0.03,186.13,186.04,10.06282039]
[1739795867688,0.03,186.13,186.04,0.063]
[1739795868259,20.0,186.12,186.04,0.063]
[1739795869286,18.806,186.11,186.04,0.063]
[1739795882098,5.3731,186.11,186.04,29.09951255]
[1739795882271,0.03,186.13,186.07,29.03651255]
[1739795882478,5.3729,186.12,186.07,29.03651255]
[1739795882699,0.03,186.13,186.07,29.03651255]
[1739795882887,5.4026,186.13,186.09,13.41184853]
[1739795883887,0.03,186.13,186.09,13.41184853]
[1739795885479,0.03,186.13,186.07,29.03651255]
[1739795885679,0.03,186.13,186.07,13.41184853]
[1739795885886,0.03,186.13,186.07,0.063]
[1739795886573,20.03,186.13,186.07,0.063]
[1739795888811,18.8049,186.12,186.07,0.063]
[1739795898228,0.12549,186.11,186.07,0.063]
[1739795898804,5.3734,186.1,186.07,0.063]
[1739795901128,18.806,186.11,186.07,0.063]
[1739795905008,5.3737,186.09,186.07,0.063]
[1739795908336,0.12549,186.08,186.04,0.063]
[1739795909026,18.8101,186.07,186.0,0.063]
[1739795909626,0.12549,186.06,186.0,0.063]
[1739795910004,1.12549,186.06,186.0,0.063]
[1739795911006,0.12549,186.06,186.0,0.063]
[1739795911212,18.812,186.05,186.0,0.063]
[1739795912911,0.12549,186.04,186.0,0.063]
[1739795915350,0.12549,186.02,186.0,0.063]
[1739795915931,0.12549,186.02,185.94,0.063]
[1739795916323,20.0,186.0,185.94,0.063]
[1739795917242,18.94359,185.99,185.94,0.063]
[1739795918238,21.13007674,185.99,185.94,0.063]
[1739795919244,20.0,185.96,185.94,0.063]
[1739795920350,5.3777,185.95,185.94,0.063]
[1739795925154,0.12549,185.94,185.88,1.8699]
[1739795925955,4.462e-05,186.12,186.11,3.0]
[1739795926273,84.4508154,186.26,186.17,4.0]
[1739795926459,84.4508154,186.26,186.2,24.37647]
[1739795926755,84.4508154,186.26,186.2,88.59564903]
[1739795926926,84.4508154,186.26,186.2,93.96614903]
[1739795927122,48.88068924,186.21,186.2,53.96445019]
[1739795927329,47.06088924,186.21,186.2,93.96614903]
[1739795927730,0.03,186.36,186.31,2.0]
[1739795930135,20.09460526,186.32,186.27,2.0]
[1739795930444,20.09460526,186.32,186.26,2.0]
[1739795930638,0.12549,186.31,186.29,16.62970045]
[1739795931234,20.03,186.32,186.29,16.62970045]
[1739795931947,20.03,186.32,186.3,1.0]
[1739795932166,0.03,186.32,186.3,2.0]
[1739795932345,66.6714604,186.35,186.32,1.0]
[1739795932676,20.03,186.36,186.32,1.0]
[1739795932961,0.12549,186.38,186.32,1.0]
[1739795933563,0.12549,186.37,186.33,3.60683557]
[1739795934140,0.12549,186.37,186.32,8.16490204]
[1739795934335,5.49119,186.37,186.32,8.16490204]
[1739795934763,0.12549,186.35,186.33,8.16490204]
[1739795935065,0.12549,186.35,186.3,17.62970045]
[1739795935655,5.49189,186.35,186.3,16.62970045]
[1739795936159,5.49189,186.35,186.29,16.62970045]
[1739795937454,5.49189,186.35,186.3,20.22627825]
[1739795937660,0.12549,186.31,186.3,20.22627825]
[1739795937842,0.12549,186.31,186.28,33.2594009]
[1739795938780,20.0,186.32,186.28,33.2594009]
[1739795939772,5.3673,186.31,186.28,33.2594009]
[1739795940285,0.12549,186.3,186.28,33.2594009]
[1739795941157,5.3679,186.29,186.28,33.2594009]
[1739795943179,5.3679,186.29,186.27,1.0]
[1739795944178,5.3675,186.31,186.29,2.0]
[1739795944478,5.3675,186.31,186.27,1.0]
[1739795944676,0.12549,186.3,186.26,2.0]
[1739795944889,0.12549,186.3,186.27,1.0]
[1739795945251,5.3675,186.31,186.27,2.0]
[1739795945778,5.3675,186.31,186.28,1.0]
[1739795946688,5.3675,186.31,186.28,2.0]
[1739795946984,5.3675,186.31,186.29,2.0]
[1739795947185,5.3675,186.31,186.26,2.0]
[1739795947477,18.7859,186.31,186.26,2.0]
[1739795947878,18.7859,186.31,186.27,1.0]
[1739795948056,18.7859,186.31,186.27,2.0]
[1739795949084,18.7859,186.31,186.27,1.0]
[1739795949668,20.0,186.3,186.27,2.0]
[1739795949861,4.56,186.29,186.27,1.0]
[1739795950484,4.56,186.29,186.27,2.0]
[1739795951326,5.3679,186.29,186.28,2.0]
[1739795952795,1.84689,186.34,186.27,2.0]
[1739795953107,20.0,186.33,186.27,2.0]
[1739795953311,20.12549,186.31,186.27,1.0]
[1739795953887,0.12549,186.33,186.27,1.0]
[1739795954209,20.0,186.3,186.27,1.0]
[1739795954407,4.54,186.29,186.27,1.0]
[1739795955110,4.54,186.29,186.27,2.0]
[1739795955810,4.54,186.29,186.27,2.063]
[1739795955992,5.3682,186.28,186.27,2.063]
[1739795958898,5.3679,186.29,186.28,1.0]
[1739795959096,5.3679,186.29,186.27,2.063]
[1739795959402,5.3679,186.29,186.28,1.0]
[1739795959619,5.3679,186.29,186.27,2.063]
[1739795959815,5.3679,186.29,186.27,1.063]
[1739795963213,6.69101628,186.3,186.27,1.063]
[1739795963723,0.12549,186.3,186.27,0.063]
[1739795963890,0.12549,186.3,186.25,1.0]
[1739795964095,0.12549,186.3,186.24,2.0]
[1739795964330,0.12549,186.29,186.25,2.0]
[1739795965913,0.12549,186.29,186.25,1.0]
[1739795966135,18.7888,186.28,186.24,2.0]
[1739795966412,18.7888,186.28,186.25,1.0]
[1739795966633,18.7888,186.28,186.25,2.0]
[1739795967518,18.7888,186.28,186.25,2.063]
[1739795968317,18.7888,186.28,186.25,0.063]
[1739795968838,18.7888,186.28,186.25,2.063]
[1739795969225,18.7888,186.28,186.25,1.063]
[1739795970522,20.0,186.29,186.26,1.0]
[1739795970705,4.44,186.28,186.25,0.063]
[1739795970897,0.12549,186.28,186.25,0.063]
[1739795971522,0.12549,186.28,186.25,1.063]
[1739795972030,20.12549,186.28,186.25,1.063]
[1739795972529,5.3685,186.27,186.25,0.063]
[1739795973719,5.3685,186.27,186.25,1.063]
[1739795974023,5.3685,186.27,186.25,0.063]
[1739795975735,5.3685,186.27,186.23,2.0]
[1739795975902,18.7898,186.27,186.23,2.0]
[1739795976312,18.7898,186.27,186.24,1.0]
[1739795977130,18.7898,186.27,186.23,2.0]
[1739795977429,18.7898,186.27,186.24,2.0]
[1739795979541,18.7898,186.27,186.24,2.063]
[1739795980430,18.7898,186.27,186.24,1.063]
[1739795980649,18.7898,186.27,186.24,2.063]
[1739795981639,18.7898,186.27,186.25,1.0]
[1739795982012,18.7898,186.27,186.24,2.063]
[1739795982539,18.7898,186.27,186.25,1.0]
[1739795983143,18.7898,186.27,186.24,2.063]
[1739795983731,18.7898,186.27,186.25,1.0]
[1739795983937,18.7898,186.27,186.24,2.063]
[1739795984233,18.7898,186.27,186.25,1.0]
[1739795984432,18.7898,186.27,186.24,2.063]
[1739795985936,18.7898,186.27,186.25,2.0]
[1739795986117,18.7898,186.27,186.26,1.0]
[1739795986302,18.7898,186.27,186.25,2.0]
[1739795986721,18.7898,186.27,186.26,1.0]
[1739795987118,18.7898,186.27,186.26,2.0]
[1739795987317,13.4213,186.27,186.26,2.0]
[1739795987518,5.3679,186.29,186.28,1.0]
[1739795988039,5.3679,186.29,186.28,2.0]
[1739795988212,5.3679,186.29,186.27,2.0]
[1739795988745,18.7878,186.29,186.25,2.0]
[1739795989040,18.7878,186.29,186.25,1.0]
[1739795989245,18.7878,186.29,186.27,1.0]
[1739795989539,13.4199,186.29,186.27,1.0]
[1739795989716,4.36,186.28,186.27,1.0]
[1739795990219,4.36,186.28,186.25,2.0]
[1739795990417,4.36,186.28,186.27,1.0]
[1739795992546,9.7282,186.28,186.27,1.0]
[1739795992723,5.3682,186.28,186.27,1.0]
[1739795994333,13.4499,186.29,186.27,1.0]
[1739795994639,18.8178,186.29,186.27,1.0]
[1739795995650,18.8178,186.29,186.27,2.0]
[1739795996359,13.4499,186.29,186.27,1.0]
[1739795998449,13.4499,186.29,186.27,2.0]
[1739796000235,0.03,186.29,186.28,2.0]
[1739796001660,0.03,186.29,186.28,1.0]
[1739796001955,0.03,186.29,186.28,2.0]
[1739796008072,0.03,186.29,186.28,1.0]
[1739796008237,0.03,186.29,186.27,2.0]
[1739796008748,0.03,186.29,186.25,2.063]
[1739796009869,0.03,186.29,186.27,1.0]
[1739796010674,5.3979,186.29,186.27,1.0]
[1739796012171,5.3979,186.29,186.27,2.0]
[1739796012771,0.03,186.29,186.27,2.0]
[1739796013876,0.03,186.29,186.28,2.0]
[1739796040808,0.03,186.29,186.28,15.41184853]
[1739796042097,0.03,186.29,186.28,19.36643423]
[1739796044299,0.03,186.29,186.28,22.3667744]
[1739796045681,0.03,186.29,186.28,19.36643423]
[1739796051197,0.03,186.29,186.28,20.17138767]
[1739796051989,0.03,186.29,186.28,25.66507767]
[1739796052298,0.03,186.29,186.28,114.44817844]
[1739796052498,0.03,186.29,186.28,113.643225]
[1739796053510,0.03,186.29,186.28,117.88979581]
[1739796053821,0.03,186.29,186.28,116.63881581]
[1739796054907,0.03,186.29,186.28,117.88979581]
[1739796055218,0.03,186.29,186.28,37.83881581]
[1739796055414,0.03,186.29,186.28,28.66061473]
[1739796055593,0.03,186.29,186.28,38.6437155]
[1739796056213,0.03,186.29,186.28,28.66061473]
[1739796056425,0.03,186.29,186.28,23.29241473]
[1739796056713,0.03,186.29,186.28,22.36202504]
[1739796057986,0.03,186.29,186.28,5.9545857]
[1739796058930,0.03,186.29,186.28,2.0]
[1739796063025,0.03,186.29,186.28,15.41184853]
[1739796063329,0.03,186.29,186.28,16.2168745]
[1739796063804,0.03,186.29,186.28,31.56817527]
[1739796064002,0.03,186.29,186.28,35.51661324]
[1739796064227,0.03,186.29,186.28,35.64210324]
[1739796064428,0.03,186.29,186.28,114.69308324]
[1739796064733,0.03,186.29,186.28,113.88805727]
[1739796065030,0.03,186.29,186.28,116.88160281]
[1739796067029,0.03,186.29,186.28,111.26242281]
[1739796067232,0.03,186.29,186.28,116.63062281]
[1739796068032,0.03,186.29,186.28,111.26242281]
[1739796068843,0.03,186.29,186.28,101.27932204]